fUSD/lending_fUSD_20250223
["ID","MTS","AMOUNT","RATE_DAILY","PERIOD"]
[354206940,1740347458819,-1252.15,0.00016602,2]
[354206941,1740347458829,-1160.26,0.00016602,2]
[354206942,1740347458838,-500.0,0.00016602,2]
[354206943,1740347458847,-2571.84,0.00016602,2]
[354206944,1740347458857,-1587.03,0.00016602,2]
[354206945,1740347458866,-839.88,0.00016602,2]
[354206946,1740347458875,-776.23,0.00016602,2]
[354206947,1740347458885,-1493.75,0.00016602,2]
[354206948,1740347458894,-1132.73,0.00016602,2]
[354206949,1740347458904,-1187.57,0.00016602,2]
[354206950,1740347458913,-507.80217205,0.00016602,2]
[354206951,1740347458923,-500.0,0.00016602,2]
[354206952,1740347458932,-937.4,0.00016602,2]
[354206953,1740347458941,-1383.16,0.00016602,2]
[354206954,1740347458951,-500.0,0.00016602,2]
[354206955,1740347458960,-1128.39,0.00016602,2]
[354206956,1740347458970,-735.77,0.00016602,2]
[354206957,1740347458979,-1304.86,0.00016602,2]
[354206958,1740347458988,-500.0,0.00016602,2]
[354206959,1740347458998,-1023.58,0.00016602,2]
[354206960,1740347459007,-590.98,0.00016602,2]
[354206961,1740347459016,-2331.89,0.00016602,2]
[354206962,1740347459025,-500.0,0.00016602,2]
[354206963,1740347459034,-1675.65,0.00016602,2]
[354206964,1740347459043,-500.0,0.00016602,2]
[354206965,1740347459053,-500.0,0.00016602,2]
[354206966,1740347459062,-1138.1,0.00016602,2]
[354206967,1740347459071,-500.0,0.00016602,2]
[354206968,1740347459080,-1224.12,0.00016602,2]
[354206969,1740347459090,-1528.69,0.00016602,2]
[354206970,1740347459099,-7111.47,0.00016602,2]
[354206971,1740347459108,-2610.37,0.00016602,2]
[354206972,1740347459117,-649.06,0.00016602,2]
[354206973,1740347459127,-1926.75,0.00016602,2]
[354206974,1740347459136,-671.84,0.00016602,2]
[354206975,1740347459145,-500.0,0.00016602,2]
[354206976,1740347459154,-500.0,0.00016602,2]
[354206977,1740347459163,-1429.82,0.00016602,2]
[354206978,1740347459173,-1325.66,0.00016602,2]
[354206979,1740347459182,-523.87,0.00016602,2]
[354206980,1740347459191,-1445.85,0.00016602,2]
[354206981,1740347459200,-500.0,0.00016602,2]
[354206982,1740347459209,-549.08,0.00016602,2]
[354206983,1740347459219,-151.0,0.00016602,2]
[354206984,1740347459228,-151.0,0.00016602,2]
[354206985,1740347459237,-500.0,0.00016602,2]
[354206986,1740347459247,-1270.29,0.00016602,2]
[354206987,1740347459256,-956.54,0.00016602,2]
[354206988,1740347459266,-1000.36,0.00016602,2]
[354206989,1740347459275,-581.83,0.00016602,2]
[354206990,1740347459284,-500.0,0.00016602,2]
[354206991,1740347459293,-1130.82,0.00016602,2]
[354206992,1740347459302,-500.0,0.00016602,2]
[354206993,1740347459313,-500.0,0.00016602,2]
[354206994,1740347459322,-500.0,0.00016602,2]
[354206995,1740347459331,-1270.32,0.00016602,2]
[354206996,1740347459341,-791.67,0.00016602,2]
[354206997,1740347459351,-547.75,0.00016602,2]
[354206998,1740347459361,-585.12,0.00016602,2]
[354206999,1740347459370,-1004.92,0.00016602,2]
[354207000,1740347459379,-1311.36,0.00016602,2]
[354207001,1740347459389,-819.84,0.00016602,2]
[354207002,1740347459398,-2846.06,0.00016602,2]
[354207003,1740347459407,-500.0,0.00016602,2]
[354207004,1740347459416,-1304.2,0.00016602,2]
[354207005,1740347459425,-730.48,0.00016602,2]
[354207006,1740347459435,-1576.97,0.00016602,2]
[354207007,1740347459443,-1982.8,0.00016602,2]
[354207008,1740347459453,-1993.93,0.00016602,2]
[354207009,1740347459462,-500.0,0.00016602,2]
[354207010,1740347459471,-500.0,0.00016602,2]
[354207011,1740347459480,-500.0,0.00016602,2]
[354207012,1740347459490,-1753.08,0.00016602,2]
[354207013,1740347459499,-500.0,0.00016602,2]
[354207014,1740347459508,-605.12,0.00016602,2]
[354207015,1740347459517,-500.0,0.00016602,2]
[354207016,1740347459527,-1389.68,0.00016602,2]
[354207017,1740347459536,-1084.74,0.00016602,2]
[354207018,1740347459545,-3031.56,0.00016602,2]
[354207019,1740347459554,-869.61,0.00016602,2]
[354207020,1740347459563,-500.0,0.00016602,2]
[354207021,1740347459572,-500.0,0.00016602,2]
[354207022,1740347459580,-500.0,0.00016602,2]
[354207023,1740347459590,-153.561051,0.00016602,2]
[354207024,1740347459599,-673.13,0.00016602,2]
[354207025,1740347459608,-1378.22632912,0.00016602,2]
[354207026,1740347460768,-278.16,0.00016192,2]
[354207027,1740347460778,-47.79661418,0.00016438,2]
[354207028,1740347460790,-452.20338582,0.00016438,2]
[354207029,1740347460799,-104.06936366,0.00016438,2]
[354207030,1740347460817,-431.885,0.00016438,2]
[354207031,1740347460828,-4647.77442738,0.00016438,2]
[354207032,1740347460839,-172.12120896,0.00016438,2]
[354207033,1740347460848,-349.89777376,0.00016438,2]
[354207034,1740347460860,-150.10222624,0.00016438,2]
[354207035,1740347460869,-349.89777376,0.0001652,2]
[354207036,1740347460882,-150.10222624,0.0001652,2]
[354207037,1740347460892,-799.54777376,0.0001652,2]
[354207038,1740347460908,-4556.30222624,0.0001652,2]
[354207039,1740347460917,-500.0,0.0001652,2]
[354207040,1740347460926,-1020.48367088,0.00016602,2]
[354207041,1740347460935,-586.99,0.00016602,2]
[354207042,1740347460945,-2553.59,0.00016602,2]
[354207043,1740347460954,-1367.37,0.00016602,2]
[354207044,1740347460963,-500.0,0.00016602,2]
[354207045,1740347460972,-500.0,0.00016602,2]
[354207046,1740347460982,-548.0,0.00016602,2]
[354207047,1740347460991,-500.0,0.00016602,2]
[354207048,1740347461000,-576.33,0.00016602,2]
[354207049,1740347461009,-1343.35,0.00016602,2]
[354207050,1740347461019,-1218.59,0.00016602,2]
[354207051,1740347461028,-782.0,0.00016602,2]
[354207052,1740347461037,-1908.95,0.00016602,2]
[354207053,1740347461047,-2061.4,0.00016602,2]
[354207054,1740347461056,-500.0,0.00016602,2]
[354207055,1740347461065,-500.0,0.00016602,2]
[354207056,1740347461074,-1201.38,0.00016602,2]
[354207057,1740347461084,-500.0,0.00016602,2]
[354207058,1740347461093,-1621.89,0.00016602,2]
[354207059,1740347461102,-500.0,0.00016602,2]
[354207060,1740347461111,-500.0,0.00016602,2]
[354207061,1740347461121,-1403.68,0.00016602,2]
[354207062,1740347461130,-500.0,0.00016602,2]
[354207063,1740347461139,-1309.97,0.00016602,2]
[354207064,1740347461148,-597.08,0.00016602,2]
[354207065,1740347461157,-994.33,0.00016602,2]
[354207066,1740347461167,-500.0,0.00016602,2]
[354207067,1740347461176,-579.55,0.00016602,2]
[354207068,1740347461186,-727.54,0.00016602,2]
[354207069,1740347461195,-500.0,0.00016602,2]
[354207070,1740347461204,-868.41,0.00016602,2]
[354207071,1740347461213,-1840.87,0.00016602,2]
[354207072,1740347461222,-500.0,0.00016602,2]
[354207073,1740347461231,-952.46,0.00016602,2]
[354207074,1740347461240,-500.0,0.00016602,2]
[354207075,1740347461249,-500.0,0.00016602,2]
[354207076,1740347461258,-500.0,0.00016602,2]
[354207077,1740347461268,-2559.75,0.00016602,2]
[354207078,1740347461277,-500.0,0.00016602,2]
[354207079,1740347461287,-564.42,0.00016602,2]
[354207080,1740347461296,-500.0,0.00016602,2]
[354207081,1740347461305,-500.0,0.00016602,2]
[354207082,1740347461319,-1709.67,0.00016602,2]
[354207083,1740347461328,-1913.2,0.00016602,2]
[354207084,1740347461338,-737.03,0.00016602,2]
[354207085,1740347461347,-396.98979511,0.00016602,2]
[354207086,1740347461357,-500.0,0.00016602,2]
[354207087,1740347461366,-1824.7,0.00016602,2]
[354207088,1740347461375,-931.18,0.00016602,2]
[354207089,1740347461384,-1239.75,0.00016602,2]
[354207090,1740347461395,-500.0,0.00016602,2]
[354207091,1740347461405,-500.0,0.00016602,2]
[354207092,1740347461414,-1897.34,0.00016602,2]
[354207093,1740347461423,-1219.58,0.00016602,2]
[354207094,1740347461432,-500.0,0.00016602,2]
[354207095,1740347461442,-691.25,0.00016602,2]
[354207096,1740347461451,-616.32,0.00016602,2]
[354207097,1740347461460,-1580.157788,0.00016602,2]
[354207098,1740347461469,-1580.157788,0.00016602,2]
[354207099,1740347461479,-2057.3,0.00016602,2]
[354207100,1740347461488,-1279.11,0.00016602,2]
[354207101,1740347461497,-500.0,0.00016602,2]
[354207102,1740347461506,-1293.45,0.00016602,2]
[354207103,1740347461516,-1190.54,0.00016602,2]
[354207104,1740347461525,-773.32,0.00016602,2]
[354207105,1740347461535,-500.0,0.00016602,2]
[354207106,1740347461544,-993.98,0.00016602,2]
[354207107,1740347461553,-579.48,0.00016602,2]
[354207108,1740347461562,-1423.4,0.00016602,2]
[354207109,1740347461571,-500.0,0.00016602,2]
[354207110,1740347461580,-500.0,0.00016602,2]
[354207111,1740347461589,-1341.37530786,0.00016602,2]
[354207112,1740347461612,-886.37314605,0.00016335,2]
[354207113,1740347461621,-65.46262789,0.00016602,2]
[354207114,1740347461708,-302.0,0.00016602,2]
[354207116,1740347840036,161.63,8.767e-05,2]
[354207118,1740348637786,-240.0,0.00010957,2]
[354207119,1740348637799,-854.60518,0.00010958,2]
[354207120,1740348637808,-1706.728752,0.00010958,2]
[354207121,1740348637818,-156.741372,0.00010958,2]
[354207122,1740348637827,-193.607218,0.00010958,2]
[354207123,1740348637836,-152.022761,0.00010958,2]
[354207124,1740348637845,-193.607216,0.00010958,2]
[354207125,1740348637854,-152.022761,0.00010958,2]
[354207126,1740348637862,-854.60518,0.00011041,2]
[354207127,1740348637871,-1706.728752,0.00011041,2]
[354207128,1740348637880,-854.60518,0.00011123,2]
[354207129,1740348637889,-1706.728752,0.00011123,2]
[354207130,1740348637897,-152.022761,0.00011123,2]
[354207131,1740348637906,-152.022761,0.00011123,2]
[354207132,1740348637916,-854.60518,0.00011205,2]
[354207133,1740348637925,-1706.728752,0.00011205,2]
[354207134,1740348637934,-854.60518,0.00011287,2]
[354207135,1740348637943,-422.43718717,0.00011287,2]
[354207136,1740348637965,-479.61800423,0.00011287,2]
[354207137,1740348638053,-804.6735606,0.00011287,2]
[354207138,1740348638062,-152.022761,0.00011287,2]
[354207139,1740348638071,-152.022761,0.00011287,2]
[354207140,1740348638081,-854.60518,0.00011369,2]
[354207141,1740348638090,-1706.728752,0.00011369,2]
[354207142,1740348638100,-6345.68314549,0.00011785,2]
[354207143,1740348638110,-5000.0,0.00011785,2]
[354207144,1740348638119,-150.0,0.00012054,2]
[354207145,1740348638128,-553.61,0.00013325,2]
[354207146,1740348638138,-500.0,0.00013699,2]
[354207147,1740348638147,-232.11,0.00014952,2]
[354207148,1740348638156,-150.0,0.00014992,2]
[354207149,1740348638166,-150.0,0.00014992,2]
[354207150,1740348638176,-150.0,0.00014992,2]
[354207151,1740348638186,-150.0,0.00014992,2]
[354207152,1740348638195,-150.0,0.00015143,2]
[354207153,1740348638205,-150.0,0.00015295,2]
[354207154,1740348638214,-150.0,0.00015325,2]
[354207155,1740348638224,-258.95,0.00015362,2]
[354207156,1740348638234,-181.19,0.00015379,2]
[354207157,1740348638243,-1000.0,0.00015412,2]
[354207159,1740348638254,-150.0,0.00015446,2]
[354207161,1740348638263,-2751.0,0.00015505,2]
[354207163,1740348638272,-150.0,0.00015547,2]
[354207165,1740348638282,-553.61,0.00015589,2]
[354207167,1740348638291,-150.0,0.00015598,2]
[354207169,1740348638299,-150.0,0.00015658,2]
[354207170,1740348638310,-150.0,0.00015749,2]
[354207171,1740348638319,-150.0,0.000159,2]
[354207172,1740348638328,-167.09,0.0001597,2]
[354207173,1740348638340,-150.0,0.00015991,2]
[354207174,1740348638349,-166.97351745,0.00016,5]
[354207175,1740348638359,-150.0,0.00016052,2]
[354207176,1740348638368,-150.0,0.00016102,2]
[354207177,1740348638378,-150.0,0.00016203,2]
[354207178,1740348638387,-432.55648003,0.00016222,2]
[354207179,1740348638396,-3132.88306201,0.00016222,2]
[354207180,1740348638406,-1251.7918418,0.00016269,2]
[354207181,1740348638415,-153.0,0.00016295,2]
[354207182,1740348638424,-153.0,0.00016295,2]
[354207183,1740348638433,-153.0,0.00016295,2]
[354207184,1740348638443,-153.0,0.00016295,2]
[354207185,1740348638452,-153.0,0.00016295,2]
[354207186,1740348638461,-153.0,0.00016295,2]
[354207187,1740348638470,-153.0,0.00016295,2]
[354207188,1740348638479,-153.0,0.00016295,2]
[354207189,1740348638488,-153.0,0.00016295,2]
[354207190,1740348638498,-153.0,0.00016295,2]
[354207191,1740348638507,-153.0,0.00016295,2]
[354207192,1740348638516,-153.0,0.00016295,2]
[354207193,1740348638525,-153.0,0.00016295,2]
[354207194,1740348638534,-153.0,0.00016295,2]
[354207195,1740348638543,-153.0,0.00016295,2]
[354207196,1740348638552,-153.0,0.00016295,2]
[354207197,1740348638561,-153.0,0.00016295,2]
[354207198,1740348638570,-153.0,0.00016295,2]
[354207199,1740348638579,-153.0,0.00016295,2]
[354207200,1740348638588,-153.0,0.00016295,2]
[354207201,1740348638598,-153.0,0.00016295,2]
[354207202,1740348638607,-153.0,0.00016295,2]
[354207203,1740348638616,-153.0,0.00016295,2]
[354207204,1740348638625,-153.0,0.00016295,2]
[354207205,1740348638634,-153.0,0.00016295,2]
[354207206,1740348638644,-153.0,0.00016295,2]
[354207207,1740348638654,-150.0,0.00016324,2]
[354207208,1740348638663,-500.0,0.00016338,2]
[354207209,1740348638674,-306.16290437,0.00016338,2]
[354207210,1740348638683,-7500.0,0.00016338,2]
[354207211,1740348638692,-1601.2439,0.00016338,2]
[354207212,1740348638701,-1000.0,0.00016338,2]
[354207213,1740348638710,-150.0,0.00016355,2]
[354207214,1740348638719,-1791.45,0.00016428,2]
[354207215,1740348638729,-166.822,0.00016428,2]
[354207216,1740348638739,-200.0,0.00016428,2]
[354207217,1740348638749,-296.44,0.00016428,2]
[354207218,1740348638758,-500.0,0.00016438,2]
[354207219,1740348638768,-500.0,0.00016438,2]
[354207220,1740348638778,-500.0,0.00016438,2]
[354207221,1740348638788,-500.91592595,0.00016438,2]
[354207222,1740348638798,-250.20842939,0.00016438,2]
[354207223,1740348638809,-500.0,0.00016438,2]
[354207224,1740348638819,-500.0,0.00016438,2]
[354207225,1740348638829,-500.0,0.00016438,2]
[354207226,1740348638839,-500.0,0.00016438,2]
[354207227,1740348638848,-500.0,0.00016438,2]
[354207228,1740348638858,-500.0,0.00016438,2]
[354207229,1740348638867,-500.0,0.00016438,2]
[354207230,1740348638876,-500.0,0.00016438,2]
[354207231,1740348638885,-500.0,0.00016438,2]
[354207232,1740348638894,-500.0,0.00016438,2]
[354207233,1740348638904,-500.0,0.00016438,2]
[354207234,1740348638913,-314.27983536,0.00016438,2]
[354207235,1740348638922,-501.4675068,0.00016438,2]
[354207236,1740348638931,-500.80961118,0.00016438,2]
[354207237,1740348638940,-501.85250831,0.00016438,2]
[354207238,1740348638949,-501.25082188,0.00016438,2]
[354207239,1740348638958,-500.0,0.00016438,2]
[354207240,1740348638967,-500.0,0.00016438,2]
[354207241,1740348638976,-500.0,0.00016438,2]
[354207242,1740348638986,-1000.0,0.00016438,2]
[354207243,1740348638995,-500.0,0.00016438,2]
[354207244,1740348639008,-500.0,0.00016438,2]
[354207245,1740348639017,-500.0,0.00016438,2]
[354207246,1740348639026,-500.0,0.00016438,2]
[354207247,1740348639035,-500.0,0.00016438,2]
[354207248,1740348639046,-500.0,0.00016438,2]
[354207249,1740348639055,-500.0,0.00016438,2]
[354207250,1740348639064,-500.0,0.00016438,2]
[354207251,1740348639073,-500.0,0.00016438,2]
[354207252,1740348639083,-504.9715667,0.00016438,2]
[354207253,1740348639093,-503.06291679,0.00016438,2]
[354207254,1740348639102,-500.0,0.00016438,2]
[354207255,1740348639111,-1405.08,0.00016438,2]
[354207256,1740348639120,-500.0,0.00016438,2]
[354207257,1740348639129,-500.0,0.00016438,2]
[354207258,1740348639138,-500.0,0.00016438,2]
[354207259,1740348639147,-503.04,0.00016438,2]
[354207260,1740348639156,-934.07,0.00016438,2]
[354207261,1740348639166,-500.0,0.00016438,2]
[354207262,1740348639175,-500.0,0.00016438,2]
[354207263,1740348639184,-500.0,0.00016438,2]
[354207264,1740348639194,-500.0,0.00016438,2]
[354207265,1740348639203,-500.0,0.00016438,2]
[354207266,1740348639212,-1230.9,0.00016438,2]
[354207267,1740348639222,-500.0,0.00016438,2]
[354207268,1740348639231,-579.43,0.00016438,2]
[354207269,1740348639241,-622.58,0.00016438,2]
[354207270,1740348639250,-500.0,0.00016438,2]
[354207271,1740348639259,-793.76,0.00016438,2]
[354207272,1740348639270,-500.0,0.00016438,2]
[354207273,1740348639625,-500.0,0.00016438,2]
[354207274,1740348639655,-500.0,0.00016438,2]
[354207275,1740348639665,-500.0,0.00016438,2]
[354207276,1740348639674,-500.0,0.00016438,2]
[354207277,1740348639684,-500.0,0.00016438,2]
[354207278,1740348639693,-911.41,0.00016438,2]
[354207279,1740348639704,-500.0,0.00016438,2]
[354207280,1740348639713,-500.0,0.00016438,2]
[354207281,1740348639722,-500.0,0.00016438,2]
[354207282,1740348639731,-500.0,0.00016438,2]
[354207283,1740348639740,-500.0,0.00016438,2]
[354207284,1740348639749,-500.0,0.00016438,2]
[354207285,1740348639758,-503.64563473,0.00016438,2]
[354207286,1740348639768,-500.0,0.00016438,2]
[354207287,1740348639777,-723.57,0.00016438,2]
[354207288,1740348639787,-500.0,0.00016438,2]
[354207289,1740348639797,-1028.46,0.00016438,2]
[354207290,1740348639807,-938.11,0.00016438,2]
[354207291,1740348639818,-500.0,0.00016438,2]
[354207292,1740348639827,-1338.95,0.00016438,2]
[354207293,1740348639838,-578.82,0.00016438,2]
[354207294,1740348639848,-549.09,0.00016438,2]
[354207295,1740348639857,-500.0,0.00016438,2]
[354207297,1740348639867,-500.0,0.00016438,2]
[354207298,1740348639876,-500.0,0.00016438,2]
[354207299,1740348639886,-508.60816115,0.00016438,2]
[354207300,1740348639895,-676.03,0.00016438,2]
[354207301,1740348639904,-500.0,0.00016438,2]
[354207302,1740348639914,-500.0,0.00016438,2]
[354207303,1740348639923,-500.0,0.00016438,2]
[354207304,1740348639933,-661.2,0.00016438,2]
[354207305,1740348639942,-500.0,0.00016438,2]
[354207306,1740348639952,-500.0,0.00016438,2]
[354207307,1740348639962,-500.0,0.00016438,2]
[354207308,1740348639972,-500.0,0.00016438,2]
[354207309,1740348639982,-500.0,0.00016438,2]
[354207310,1740348639991,-500.0,0.00016438,2]
[354207311,1740348640001,-500.0,0.00016438,2]
[354207312,1740348640012,-500.0,0.00016438,2]
[354207313,1740348640021,-567.93,0.00016438,2]
[354207314,1740348640030,-511.98,0.00016438,2]
[354207315,1740348640039,-509.07050351,0.00016438,2]
[354207316,1740348640050,-500.0,0.00016438,2]
[354207317,1740348640059,-500.0,0.00016438,2]
[354207318,1740348640068,-500.0,0.00016438,2]
[354207319,1740348640078,-775.71,0.00016438,2]
[354207320,1740348640087,-1266.17,0.00016438,2]
[354207321,1740348640097,-500.0,0.00016438,2]
[354207322,1740348640106,-500.0,0.00016438,2]
[354207323,1740348640115,-504.18718648,0.00016438,2]
[354207324,1740348640124,-500.0,0.00016438,2]
[354207325,1740348640135,-1284.95,0.00016438,2]
[354207326,1740348640146,-949.15,0.00016438,2]
[354207327,1740348640157,-500.0,0.00016438,2]
[354207328,1740348640167,-500.0,0.00016438,2]
[354207329,1740348640178,-713.54,0.00016438,2]
[354207330,1740348640189,-513.62,0.00016438,2]
[354207331,1740348640199,-989.75,0.00016438,2]
[354207332,1740348640208,-738.19,0.00016438,2]
[354207333,1740348640219,-500.0,0.00016438,2]
[354207334,1740348640229,-468.21440851,0.00016438,2]
[354207335,1740348640238,-1191.27,0.00016438,2]
[354207336,1740348640249,-500.0,0.00016438,2]
[354207337,1740348640261,-500.0,0.00016438,2]
[354207338,1740348640270,-500.0,0.00016438,2]
[354207339,1740348640280,-1299.54,0.00016438,2]
[354207340,1740348640289,-500.0,0.00016438,2]
[354207341,1740348640298,-500.0,0.00016438,2]
[354207342,1740348640307,-329.70386496,0.00016438,2]
[354207343,1740348640317,-500.0,0.00016438,2]
[354207344,1740348640326,-689.45,0.00016438,2]
[354207345,1740348640335,-500.0,0.00016438,2]
[354207346,1740348640345,-507.11,0.00016438,2]
[354207347,1740348640354,-500.0,0.00016438,2]
[354207348,1740348640364,-500.0,0.00016438,2]
[354207349,1740348640374,-2000.09,0.00016438,2]
[354207350,1740348640383,-500.0,0.00016438,2]
[354207351,1740348640394,-500.0,0.00016438,2]
[354207352,1740348640403,-500.0,0.00016438,2]
[354207353,1740348640413,-2552.32,0.00016438,2]
[354207354,1740348640423,-500.0,0.00016438,2]
[354207355,1740348640432,-500.0,0.00016438,2]
[354207356,1740348640442,-500.0,0.00016438,2]
[354207357,1740348640451,-500.0,0.00016438,2]
[354207358,1740348640462,-644.9,0.00016438,2]
[354207359,1740348640472,-500.0,0.00016438,2]
[354207360,1740348640483,-500.0,0.00016438,2]
[354207361,1740348640492,-500.0,0.00016438,2]
[354207362,1740348640502,-500.0,0.00016438,2]
[354207364,1740348640512,-522.44,0.00016438,2]
[354207366,1740348640522,-500.18,0.00016438,2]
[354207368,1740348640531,-1482.55,0.00016438,2]
[354207370,1740348640541,-452.76236136,0.00016438,2]
[354207371,1740348640551,-500.0,0.00016438,2]
[354207372,1740348640560,-805.7,0.00016438,2]
[354207373,1740348640569,-500.0,0.00016438,2]
[354207374,1740348640578,-1192.14,0.00016438,2]
[354207375,1740348640587,-510.37,0.00016438,2]
[354207376,1740348640596,-1348.8,0.00016438,2]
[354207377,1740348640605,-535.25,0.00016438,2]
[354207378,1740348640614,-500.0,0.00016438,2]
[354207379,1740348640623,-500.0,0.00016438,2]
[354207380,1740348640632,-673.45,0.00016438,2]
[354207381,1740348640642,-955.15,0.00016438,2]
[354207382,1740348640651,-500.0,0.00016438,2]
[354207383,1740348640660,-500.0,0.00016438,2]
[354207384,1740348640669,-934.54,0.00016438,2]
[354207385,1740348640678,-500.0,0.00016438,2]
[354207386,1740348640688,-1395.93,0.00016438,2]
[354207387,1740348640697,-500.0,0.00016438,2]
[354207388,1740348640706,-1244.22,0.00016438,2]
[354207389,1740348640715,-500.0,0.00016438,2]
[354207390,1740348640725,-500.0,0.00016438,2]
[354207392,1740348640734,-1579.78,0.00016438,2]
[354207393,1740348640743,-539.28,0.00016438,2]
[354207394,1740348640753,-500.0,0.00016438,2]
[354207395,1740348640762,-500.0,0.00016438,2]
[354207396,1740348640771,-500.0,0.00016438,2]
[354207397,1740348640780,-500.0,0.00016438,2]
[354207398,1740348640789,-500.0,0.00016438,2]
[354207399,1740348640798,-685.78,0.00016438,2]
[354207400,1740348640807,-1015.79,0.00016438,2]
[354207401,1740348640816,-501.08,0.00016438,2]
[354207402,1740348640825,-1692.96,0.00016438,2]
[354207403,1740348640834,-604.22655993,0.00016438,2]
[354207404,1740348640843,-500.0,0.00016438,2]
[354207405,1740348640853,-1282.51,0.00016438,2]
[354207406,1740348640863,-500.0,0.00016438,2]
[354207407,1740348640871,-643.38173991,0.00016438,2]
[354207408,1740348640881,-500.0,0.00016438,2]
[354207409,1740348640890,-208.58167614,0.00016438,2]
[354207410,1740348640899,-994.56,0.00016438,2]
[354207411,1740348640911,-317.38402745,0.00016438,2]
[354207412,1740348640922,-500.0,0.00016438,2]
[354207413,1740348640932,-827.75,0.00016438,2]
[354207414,1740348640941,-500.0,0.00016438,2]
[354207415,1740348640950,-500.0,0.00016438,2]
[354207416,1740348640959,-719.96,0.00016438,2]
[354207417,1740348640969,-1251.08,0.00016438,2]
[354207418,1740348640978,-500.0,0.00016438,2]
[354207419,1740348640988,-546.01,0.00016438,2]
[354207420,1740348640997,-500.0,0.00016438,2]
[354207421,1740348641010,-500.0,0.00016438,2]
[354207422,1740348641019,-500.0,0.00016438,2]
[354207423,1740348641028,-488.46725919,0.00016438,2]
[354207424,1740348641038,-500.0,0.00016438,2]
[354207425,1740348641049,-668.21,0.00016438,2]
[354207426,1740348641058,-500.0,0.00016438,2]
[354207427,1740348641067,-500.0,0.00016438,2]
[354207428,1740348641076,-507.68,0.00016438,2]
[354207429,1740348641087,-151.0,0.00016438,2]
[354207430,1740348641096,-710.67,0.00016438,2]
[354207431,1740348641105,-500.0,0.00016438,2]
[354207432,1740348641115,-171.24,0.00016438,2]
[354207433,1740348641123,-673.47,0.00016438,2]
[354207434,1740348641133,-500.0,0.00016438,2]
[354207435,1740348641142,-1281.85,0.00016438,2]
[354207436,1740348641151,-500.0,0.00016438,2]
[354207437,1740348641160,-500.0,0.00016438,2]
[354207438,1740348641169,-2573.77,0.00016438,2]
[354207439,1740348641178,-677.6,0.00016438,2]
[354207440,1740348641188,-500.0,0.00016438,2]
[354207441,1740348641197,-1268.1,0.00016438,2]
[354207442,1740348641206,-1894.08,0.00016438,2]
[354207443,1740348641216,-832.7,0.00016438,2]
[354207444,1740348641225,-500.0,0.00016438,2]
[354207445,1740348641234,-1667.8,0.00016438,2]
[354207446,1740348641243,-1485.69,0.00016438,2]
[354207447,1740348641252,-500.0,0.00016438,2]
[354207448,1740348641262,-500.0,0.00016438,2]
[354207449,1740348641270,-308.17039813,0.00016438,2]
[354207450,1740348641280,-1326.64,0.00016438,2]
[354207451,1740348641290,-500.0,0.00016438,2]
[354207452,1740348641299,-500.0,0.00016438,2]
[354207453,1740348641308,-1326.73,0.00016438,2]